bitfinex-derivatives/quotes_ETHF0:USTF0_20250926
["timestamp","ask_amount","ask_price","bid_price","bid_amount"]
[1758848581689,0.4344,3928.7,3928.2,0.295]
[1758848581895,0.409,3928.6,3928.5,0.45791]
[1758848582797,0.1662,3929.5,3928.5,0.45791]
[1758848582798,0.1662,3929.5,3928.7,0.295]
[1758848582996,0.53013181,3929.4,3929.3,0.45783]
[1758848583494,0.1662,3930.0,3929.0,0.295]
[1758848583495,0.5752,3930.0,3929.0,0.295]
[1758848583698,0.93609793,3929.9,3929.7,0.45777]
[1758848583892,0.36301647,3931.0,3930.5,0.45768]
[1758848583893,0.1649,3931.0,3930.5,0.45768]
[1758848584091,0.1649,3931.0,3929.7,0.5782]
[1758848584092,0.52941417,3930.9,3930.6,0.45767]
[1758848584402,0.93591417,3930.8,3930.6,0.45767]
[1758848584701,0.93591417,3930.8,3930.1,0.2932]
[1758848584702,0.4065,3931.5,3931.3,0.45758]
[1758848584997,0.1513,3932.0,3931.7,0.45754]
[1758848584998,0.4065,3931.9,3931.7,0.45754]
[1758848585500,0.4065,3932.0,3931.4,0.45758]
[1758848585797,0.5578,3932.0,3931.4,0.74258]
[1758848585986,0.4065,3931.9,3930.9,0.45764]
[1758848586195,0.45754,3931.8,3930.9,0.74264]
[1758848586392,0.4065,3931.7,3930.9,0.74264]
[1758848586597,0.4065,3931.7,3931.0,0.45762]
[1758848586893,0.4065,3931.7,3930.8,40.8]
[1758848586894,1.4,3931.7,3930.8,40.8]
[1758848587193,0.4065,3931.2,3930.2,0.285]
[1758848587395,0.4065,3931.2,3930.2,0.74272]
[1758848587602,0.1513,3931.5,3930.3,40.8]
[1758848587603,0.4065,3930.9,3930.3,40.8]
[1758848587793,0.4065,3930.4,3929.5,0.4578]
[1758848587987,0.8642,3930.4,3929.4,0.285]
[1758848588394,0.4577,3930.4,3929.4,0.74281]
[1758848588596,0.4065,3930.3,3929.4,0.45781]
[1758848588893,0.45776,3930.0,3929.3,4.79132906]
[1758848589095,0.4065,3929.7,3928.9,0.45787]
[1758848589398,0.4363,3930.5,3929.5,0.4578]
[1758848589399,0.4065,3930.4,3929.5,0.4578]
[1758848589802,0.45772,3930.3,3929.3,5.08452906]
[1758848589997,0.5578,3930.0,3929.2,0.45783]
[1758848590200,0.4578,3929.6,3928.5,0.45791]
[1758848590405,0.86432,3929.4,3928.5,0.285]
[1758848590601,0.4065,3929.4,3928.1,0.2932]
[1758848590897,0.1513,3929.0,3928.4,0.45793]
[1758848591293,0.1513,3929.5,3928.8,0.45788]
[1758848591294,0.4065,3929.4,3928.8,0.45788]
[1758848591903,0.4065,3929.4,3928.6,0.45791]
[1758848592099,0.4065,3929.4,3928.4,0.2932]
[1758848592301,0.4065,3929.4,3928.8,0.45788]
[1758848592495,0.4065,3929.4,3928.4,0.2932]
[1758848592496,0.4065,3929.4,3928.6,0.45791]
[1758848592696,0.1513,3929.5,3928.2,5.05332906]
[1758848592890,0.1513,3929.5,3928.2,0.71995]
[1758848592891,0.4065,3929.1,3928.2,0.71995]
[1758848593093,0.1513,3929.0,3928.2,0.71995]
[1758848593295,0.1513,3929.0,3928.1,40.8]
[1758848593296,0.4065,3928.7,3928.1,40.8]
[1758848593800,0.4065,3928.9,3928.1,40.8]
[1758848593997,0.4065,3928.9,3927.5,5.13792906]
[1758848593998,0.45795,3928.3,3927.5,4.79132906]
[1758848594203,0.45795,3928.3,3927.7,0.285]
[1758848594502,0.1513,3928.0,3927.0,4.79132906]
[1758848594707,0.1513,3928.0,3927.0,0.285]
[1758848594708,0.4065,3927.7,3927.0,0.285]
[1758848594997,0.45805,3927.5,3926.9,40.8]
[1758848595202,0.45805,3927.5,3925.5,0.0816]
[1758848595203,0.4065,3927.4,3926.4,0.45816]
[1758848595401,0.4065,3927.4,3926.6,5.24945906]
[1758848595604,0.4065,3927.4,3926.8,0.45812]
[1758848595815,0.5578,3928.0,3927.5,0.45803]
[1758848596098,0.5578,3928.0,3927.1,5.07632906]
[1758848596099,0.4065,3927.9,3927.1,5.07632906]
[1758848596289,0.4065,3927.9,3927.1,5.36952906]
[1758848596494,0.4065,3927.9,3927.5,0.45803]
[1758848596700,0.1513,3928.0,3927.5,0.45803]
[1758848596899,0.5578,3928.5,3927.9,0.45799]
[1758848597099,0.5578,3928.5,3927.8,0.45799]
[1758848598094,0.45794,3928.4,3927.1,4.79132906]
[1758848598302,0.86445,3928.3,3927.2,0.285]
[1758848598602,0.4065,3927.9,3927.1,0.285]
[1758848598905,0.4065,3927.9,3927.2,0.45807]
[1758848599100,0.4065,3927.9,3927.1,0.285]
[1758848599306,0.4065,3927.9,3927.3,0.45805]
[1758848599496,0.4065,3927.9,3927.1,5.07632906]
[1758848599497,0.4065,3928.4,3927.2,0.2932]
[1758848599699,0.4065,3928.4,3927.5,0.45803]
[1758848599902,0.5578,3928.5,3927.9,0.45799]
[1758848600212,0.5578,3928.5,3927.6,4.79132906]
[1758848600213,0.4065,3928.4,3928.0,0.45797]
[1758848600400,0.4065,3928.4,3928.1,0.45796]
[1758848600804,0.4065,3928.4,3927.8,0.45799]
[1758848601111,0.4065,3928.4,3927.6,46.16952906]
[1758848601701,0.1513,3929.5,3928.2,0.2932]
[1758848601702,0.4065,3929.1,3928.2,0.2932]
[1758848602008,0.4065,3929.4,3928.6,0.4579]
[1758848602206,0.4065,3929.2,3928.8,0.45787]
[1758848602406,0.4065,3929.4,3928.8,0.45787]
[1758848602703,0.4065,3929.4,3928.3,0.285]
[1758848602704,0.86435,3929.2,3928.4,0.285]
[1758848602904,0.1513,3929.0,3928.4,0.285]
[1758848603306,0.1513,3929.0,3928.8,0.45788]
[1758848603502,0.1513,3929.5,3928.8,0.45788]
[1758848603707,0.93652472,3929.4,3928.8,0.45788]
[1758848603908,0.53002472,3929.3,3928.8,0.45788]
[1758848604206,0.53002472,3929.3,3928.4,0.285]
[1758848604207,0.4065,3929.6,3928.7,0.2932]
[1758848604509,0.4065,3929.4,3928.6,4.79132906]
[1758848604704,0.53008353,3929.3,3928.9,0.45786]
[1758848604899,0.1513,3929.0,3928.2,0.2932]
[1758848605201,0.4065,3928.8,3928.3,0.45794]
[1758848605402,0.4065,3928.9,3928.3,0.45794]
[1758848605610,0.4065,3928.7,3928.3,0.45794]
[1758848605909,0.4065,3928.9,3927.9,0.285]
[1758848606210,0.53078425,3928.8,3928.0,0.2932]
[1758848606401,0.4065,3928.9,3928.7,0.45789]
[1758848607502,0.45783,3929.4,3928.4,0.285]
[1758848607503,0.4065,3929.4,3928.4,0.285]
[1758848607709,0.5578,3928.5,3928.4,0.285]
[1758848608209,1.08881276,3928.5,3928.4,0.285]
[1758848608408,0.1513,3929.0,3928.4,0.5782]
[1758848608707,0.53099232,3928.9,3928.5,0.45792]
[1758848608914,0.4065,3928.7,3928.6,0.4579]
[1758848609212,0.1513,3929.0,3928.4,0.285]
[1758848609213,0.1513,3929.0,3928.9,0.45787]
[1758848609407,0.53102487,3929.0,3928.9,0.45787]
[1758848609608,0.4065,3929.3,3929.2,0.45784]
[1758848609908,0.53098262,3929.3,3929.0,0.45786]
[1758848610108,0.404,3929.1,3929.0,0.45786]
[1758848610308,0.53098262,3929.1,3929.0,0.45786]
[1758848610504,0.404,3929.3,3929.0,0.45786]
[1758848610713,0.404,3929.1,3929.0,0.45786]
[1758848610917,0.93501489,3929.1,3929.0,0.45786]
[1758848611313,0.53101489,3929.1,3929.0,0.73916]
[1758848611503,0.1513,3929.5,3929.3,0.45783]
[1758848611705,0.4294,3929.6,3929.4,0.45781]
[1758848612019,0.53096435,3929.5,3929.4,0.45781]
[1758848613112,0.53096435,3929.5,3929.1,0.45784]
[1758848613113,0.404,3929.4,3929.1,0.45784]
[1758848613310,0.404,3929.4,3928.7,0.73919]
[1758848613509,0.404,3928.9,3928.6,0.4579]
[1758848613715,0.404,3928.9,3927.5,46.26928157]
[1758848613716,0.404,3929.3,3928.4,0.2813]
[1758848613902,0.404,3929.1,3928.7,0.45789]
[1758848614106,0.68551182,3929.0,3928.8,0.45788]
[1758848614417,0.404,3928.9,3928.8,0.45788]
[1758848614815,0.0254,3929.6,3929.5,0.4578]
[1758848615014,0.404,3929.5,3929.2,0.284]
[1758848615209,0.404,3929.3,3929.2,0.284]
[1758848615415,0.9354653,3929.3,3929.2,0.284]
[1758848615720,0.5585,3929.5,3929.0,0.284]
[1758848615914,0.53145853,3929.4,3929.1,0.45784]
[1758848616215,0.404,3929.2,3929.1,0.45784]
[1758848616417,0.0254,3929.6,3929.5,0.4578]
[1758848616717,0.404,3929.4,3929.2,0.45783]
[1758848616911,0.404,3929.2,3928.7,0.284]
[1758848617114,0.404,3929.4,3929.1,0.45784]
[1758848617307,0.404,3929.2,3929.1,0.45784]
[1758848617515,0.93637497,3929.2,3929.1,0.45784]
[1758848617713,0.53237497,3929.2,3929.1,0.73914]
[1758848617921,0.0254,3929.6,3929.5,0.2813]
[1758848618322,0.93638768,3929.8,3929.6,0.45779]
[1758848618618,0.53238768,3929.7,3929.6,0.45779]
[1758848618816,0.53238768,3929.7,3929.6,0.73909]
[1758848619215,0.404,3930.8,3929.7,1.14444]
[1758848619418,0.93630704,3930.7,3930.6,0.45767]
[1758848619915,0.93630704,3930.7,3930.3,0.284]
[1758848620118,0.53230704,3930.6,3930.4,0.45769]
[1758848620314,0.53230704,3930.5,3930.4,0.45769]
[1758848621014,0.0254,3930.9,3930.7,0.45766]
[1758848621218,0.0254,3930.9,3930.7,0.73896]
[1758848621219,0.53169773,3930.8,3930.7,0.73896]
[1758848621418,0.53169773,3930.8,3930.7,1.02296]
[1758848622221,0.0254,3930.9,3930.7,1.02296]
[1758848622919,0.0254,3930.9,3929.8,40.8]
[1758848622920,0.404,3930.8,3929.8,40.8]
[1758848623224,0.404,3930.8,3929.9,0.284]
[1758848623525,0.404,3930.8,3930.6,0.45767]
[1758848623721,0.404,3930.8,3930.4,0.45769]
[1758848624016,0.4294,3930.9,3930.1,0.2813]
[1758848624224,0.404,3930.8,3930.7,0.45766]
[1758848625120,0.404,3930.8,3930.5,0.284]
[1758848625121,0.404,3930.8,3930.6,0.45766]
[1758848625323,0.0254,3930.9,3930.7,0.45765]
[1758848625523,0.404,3930.8,3930.7,0.45765]
[1758848625923,0.0254,3930.9,3930.7,0.45765]
[1758848626220,0.0254,3930.9,3930.8,0.2813]
[1758848626615,0.404,3930.8,3930.7,0.45765]
[1758848626917,0.404,3930.8,3930.7,0.74165]
[1758848627120,0.404,3930.8,3930.2,0.45772]
[1758848627422,0.0254,3930.9,3930.2,0.45772]
[1758848627423,0.404,3930.4,3930.2,0.45772]
[1758848627816,0.1545,3930.5,3930.2,0.45772]
[1758848628229,0.404,3930.4,3930.3,0.4577]
[1758848628724,0.1545,3930.5,3930.0,0.284]
[1758848628913,0.1545,3930.5,3930.3,0.4577]
[1758848629224,0.404,3930.8,3930.7,0.45766]
[1758848629620,0.0254,3930.9,3930.7,0.45766]
[1758848629917,0.0254,3930.9,3930.7,0.73896]
[1758848630319,0.0254,3930.9,3930.8,0.2813]
[1758848630523,0.0254,3930.9,3930.7,0.45766]
[1758848630719,0.404,3930.8,3930.7,0.45766]
[1758848631132,0.0254,3930.9,3930.4,0.45769]
[1758848631431,0.404,3930.8,3930.5,0.45768]
[1758848631627,0.404,3930.8,3929.9,5.32949157]
[1758848631835,0.1545,3930.5,3930.4,0.45769]
[1758848632228,0.5585,3930.5,3930.4,0.45769]
[1758848633736,0.404,3930.4,3930.2,0.45772]
[1758848633936,0.404,3930.4,3930.0,0.45774]
[1758848634134,0.1545,3930.0,3929.8,41.54176]
[1758848634332,0.404,3929.9,3929.8,41.54176]
[1758848634836,0.404,3929.9,3929.8,0.74176]
[1758848635027,0.61219,3930.5,3930.0,0.45774]
[1758848635028,0.404,3930.4,3930.0,0.45774]
[1758848635334,0.404,3930.4,3929.8,0.284]
[1758848635335,0.404,3930.4,3930.2,0.45771]
[1758848635534,0.404,3930.4,3929.4,40.8]
[1758848635535,0.404,3930.2,3928.7,0.2813]
[1758848635725,0.1545,3929.5,3928.5,0.204]
[1758848635924,0.1545,3929.5,3928.9,0.45787]
[1758848636130,0.1545,3929.5,3929.1,0.45784]
[1758848636734,0.1545,3929.5,3928.8,5.32949157]
[1758848636735,0.1545,3929.5,3929.0,0.284]
[1758848637236,0.404,3929.4,3929.0,0.284]
[1758848637535,0.1545,3930.0,3928.9,5.32949157]
[1758848637536,0.45783,3929.3,3928.9,5.32949157]
[1758848637731,0.1545,3929.0,3928.9,0.284]
[1758848638040,0.404,3929.4,3929.0,0.73916]
[1758848638238,0.1545,3930.0,3928.9,0.284]
[1758848638239,0.61225,3930.0,3929.4,0.2813]
[1758848638540,0.404,3929.8,3929.4,0.283]
[1758848638728,0.5585,3929.5,3929.4,0.283]
[1758848639441,0.5585,3929.5,3929.0,0.283]
[1758848639942,0.1545,3929.5,3929.0,0.283]
[1758848640140,0.3917,3929.4,3929.1,0.45784]
[1758848640439,0.3917,3929.4,3928.6,40.8]
[1758848640440,0.3917,3928.8,3928.0,5.32949157]
[1758848640639,0.3917,3928.4,3928.3,0.283]
[1758848641146,0.3917,3928.4,3928.1,0.45796]
[1758848641444,0.45794,3928.4,3928.1,0.283]
[1758848641643,0.3917,3928.2,3928.1,0.283]
[1758848642142,0.3917,3928.8,3928.7,0.4579]
[1758848642339,0.3917,3928.9,3928.7,0.4579]
[1758848642639,0.3917,3928.9,3928.6,0.283]
[1758848642640,0.3917,3929.4,3928.9,0.45787]
[1758848642942,0.53081638,3929.3,3928.9,0.45787]
[1758848643143,0.3917,3929.0,3928.9,0.45787]
[1758848643535,0.1545,3929.5,3928.6,5.61249157]
[1758848643736,0.5462,3929.5,3928.7,0.2677]
[1758848643943,0.1545,3929.5,3929.2,0.45783]
[1758848644241,0.1545,3929.5,3929.2,0.74083]
[1758848644435,0.3705,3929.4,3929.2,0.74083]
[1758848644642,0.1545,3929.5,3929.2,0.74083]
[1758848644945,0.3705,3929.4,3929.2,0.74083]
[1758848645143,0.3705,3929.4,3929.3,0.45782]
[1758848646040,0.3705,3929.4,3928.9,0.45787]
[1758848646243,0.3705,3929.4,3928.7,0.2677]
[1758848646244,0.3705,3929.4,3929.0,0.283]
[1758848646436,0.82833,3929.3,3928.6,5.78739157]
[1758848646738,0.1545,3929.5,3928.1,5.32949157]
[1758848646739,0.3705,3928.7,3928.1,5.32949157]
[1758848646932,0.1544,3928.5,3928.4,0.283]
[1758848647244,0.5249,3928.5,3928.4,41.083]
[1758848647441,0.1544,3928.5,3928.0,0.45797]
[1758848647645,0.1544,3928.5,3928.0,0.283]
[1758848647646,0.82844,3928.4,3928.0,0.283]
[1758848648237,0.3705,3928.4,3928.0,0.283]
[1758848649033,0.45796,3928.2,3928.0,0.283]
[1758848649235,0.3705,3928.1,3928.0,0.283]
[1758848649542,0.3705,3928.1,3926.9,39.9619]
[1758848649543,0.1544,3928.0,3927.5,0.283]
[1758848650535,0.458,3927.8,3927.1,0.45808]
[1758848650745,0.1544,3927.5,3927.2,0.283]
[1758848651043,0.3705,3927.4,3926.8,5.32949157]
[1758848651241,0.3705,3926.9,3926.3,5.32949157]
[1758848651446,0.6125,3927.0,3926.7,0.283]
[1758848651840,0.3705,3926.7,3926.3,5.32949157]
[1758848652145,0.5249,3926.5,3926.4,0.283]
[1758848652741,0.1544,3926.0,3925.5,0.45826]
[1758848652940,0.3705,3925.9,3925.6,0.283]
[1758848653237,0.1544,3926.0,3925.6,0.283]
[1758848653436,0.3705,3925.9,3925.0,0.45833]
[1758848653739,0.3705,3925.9,3924.8,5.32949157]
[1758848653740,0.3705,3925.5,3925.3,0.72418]
[1758848653944,0.1544,3926.0,3925.5,0.45827]
[1758848654247,0.1544,3926.5,3925.7,0.2659]
[1758848654248,0.3705,3926.4,3925.7,0.2659]
[1758848654446,0.3705,3926.4,3926.2,0.72408]
[1758848654751,0.3705,3926.9,3926.7,0.45812]
[1758848655046,0.1544,3927.0,3926.4,0.45815]
[1758848655047,0.5249,3927.0,3926.4,0.45815]
[1758848655342,0.3705,3926.9,3926.5,0.72404]
[1758848655644,0.0254,3927.0,3926.7,0.72403]
[1758848655845,0.3959,3927.0,3926.7,0.2659]
[1758848656036,0.1544,3928.0,3927.5,0.45803]
[1758848656037,0.3705,3927.7,3927.5,0.45803]
[1758848656347,0.3705,3927.9,3926.9,0.4581]
[1758848656540,0.3705,3927.9,3927.0,0.283]
[1758848656742,0.3705,3927.9,3926.8,0.45811]
[1758848656947,0.3705,3927.9,3926.8,0.283]
[1758848657348,0.3705,3927.4,3926.8,0.283]
[1758848657649,0.1544,3927.5,3926.8,0.74112]
[1758848657948,0.1544,3927.5,3926.9,0.4581]
[1758848658145,0.1544,3927.5,3926.8,0.283]
[1758848658342,0.3705,3927.4,3926.8,0.283]
[1758848658543,0.3705,3926.9,3926.8,0.283]
[1758848658850,0.3705,3927.8,3926.9,0.2659]
[1758848659042,0.3705,3927.8,3926.8,0.283]
[1758848659043,0.1544,3928.0,3927.3,0.72395]
[1758848659244,0.5249,3928.0,3927.4,0.283]
[1758848659443,0.3705,3927.9,3927.5,0.45804]
[1758848659748,0.3705,3927.9,3927.5,0.72394]
[1758848659949,0.3705,3927.9,3927.7,0.45801]
[1758848660149,0.1544,3928.0,3927.5,0.45803]
[1758848660451,0.3705,3927.9,3927.5,0.45803]
[1758848660742,0.3705,3927.9,3927.5,41.52393]
[1758848660949,0.3959,3928.2,3927.9,0.45798]
[1758848661150,0.3959,3928.2,3927.9,0.72388]
[1758848661348,0.0254,3928.2,3928.1,0.72387]
[1758848662149,0.0254,3928.2,3927.3,0.2659]
[1758848662350,0.0254,3928.2,3927.4,0.283]
[1758848662643,0.0254,3928.2,3927.5,40.8]
[1758848662644,0.1544,3928.0,3927.5,40.8]
[1758848662848,0.3705,3927.9,3927.5,40.8]
[1758848663044,0.3705,3927.9,3927.6,0.283]
[1758848663242,0.3959,3928.2,3928.1,0.45797]
[1758848663642,0.3705,3928.4,3927.8,0.45799]
[1758848663948,0.61232,3928.5,3927.6,0.283]
[1758848663949,0.3705,3927.9,3927.6,0.283]
[1758848664150,0.3705,3927.9,3927.3,0.45805]
[1758848664151,0.1544,3928.0,3926.8,0.2659]
[1758848664345,0.1544,3927.0,3926.9,0.283]
[1758848664542,0.3705,3927.0,3926.9,0.7411]
[1758848664742,0.3705,3927.4,3927.3,0.45805]
[1758848665447,0.45792,3928.6,3926.9,0.283]
[1758848665639,0.3705,3927.8,3927.7,0.458]
[1758848665948,0.53852918,3927.9,3927.1,5.32949157]
[1758848665949,0.3705,3927.9,3927.4,0.45804]
[1758848666344,0.3705,3927.9,3927.1,5.32949157]
[1758848666538,0.1544,3928.0,3927.6,0.45801]
[1758848666745,0.3705,3927.9,3927.1,5.32949157]
[1758848666953,0.3705,3927.4,3927.2,0.283]
[1758848667646,0.82856,3927.4,3926.8,0.45812]
[1758848667849,0.82856,3927.4,3926.5,5.32949157]
[1758848667850,0.3705,3926.9,3926.6,41.25814]
[1758848668147,0.3705,3926.9,3926.8,0.45811]
[1758848668744,0.1544,3927.0,3926.8,0.283]
[1758848668952,0.3705,3926.9,3926.8,0.283]
[1758848670253,0.45805,3927.4,3926.8,0.283]
[1758848670254,0.359,3927.4,3926.8,0.283]
[1758848670654,0.359,3927.4,3926.8,41.083]
[1758848670844,0.359,3927.4,3927.0,0.45808]
[1758848671354,0.359,3927.4,3927.2,0.45807]
[1758848671650,0.1533,3927.0,3926.9,0.4581]
[1758848671958,0.5123,3927.0,3926.9,0.283]
[1758848672653,0.5123,3927.0,3926.5,4.79179842]
[1758848672860,0.5123,3927.0,3926.1,40.8]
[1758848672861,0.45815,3926.6,3926.1,40.8]
[1758848673049,0.45815,3926.6,3925.5,5.04639842]
[1758848673050,0.1533,3926.5,3926.2,0.283]
[1758848673656,0.1533,3926.5,3926.3,0.45817]
[1758848673856,0.359,3926.4,3926.3,0.45817]
[1758848675254,0.359,3926.4,3926.2,0.283]
[1758848675456,0.1533,3926.5,3926.2,0.283]
[1758848675647,0.359,3926.4,3926.2,0.283]
[1758848675956,0.359,3926.4,3925.6,40.8]
[1758848675957,0.359,3926.2,3925.6,40.8]
[1758848676155,0.1533,3926.5,3926.1,0.45819]
[1758848676353,0.5396745,3926.4,3926.2,0.45818]
[1758848676660,0.1533,3927.0,3926.2,0.2546]
[1758848676661,0.359,3926.8,3926.2,0.2546]
[1758848676855,0.359,3926.6,3926.5,0.45815]
[1758848677050,0.89877742,3926.6,3926.5,0.45815]
[1758848677963,0.5123,3927.0,3926.9,0.45811]
[1758848678360,1.05224364,3927.0,3926.9,0.45811]
[1758848679259,0.89894364,3927.0,3926.9,0.45811]
[1758848679454,1.05224364,3927.0,3926.9,0.45811]
[1758848679766,0.1544,3927.5,3927.4,0.45805]
[1758848679767,0.359,3927.5,3927.4,0.45805]
[1758848679955,0.359,3927.5,3926.7,5.93711842]
[1758848679956,0.3844,3927.9,3927.3,0.282]
[1758848680257,0.54004913,3927.8,3927.3,0.282]
[1758848680460,0.359,3927.6,3927.2,4.79179842]
[1758848680667,1.05235386,3927.5,3927.4,0.282]
[1758848680857,1.05235386,3927.5,3926.6,0.2546]
[1758848680858,1.05235386,3927.5,3927.0,0.45809]
[1758848681054,0.54005386,3927.4,3927.2,0.45806]
[1758848681257,0.359,3927.3,3927.2,0.45806]
[1758848681561,0.359,3927.3,3927.1,0.45808]
[1758848681562,0.359,3927.2,3927.1,0.45808]
[1758848681866,0.89905386,3927.2,3927.1,0.45808]
[1758848682462,0.89905386,3927.2,3927.0,0.282]
[1758848682763,0.359,3927.2,3927.1,0.45808]
[1758848683065,0.54013539,3927.2,3926.7,41.25812]
[1758848683364,0.1533,3927.0,3926.8,0.45811]
[1758848683668,0.359,3926.9,3926.8,0.45811]
[1758848684263,0.359,3926.8,3926.7,0.282]
[1758848684464,0.359,3928.1,3927.7,0.458]
[1758848684658,0.3844,3927.9,3927.8,0.282]
[1758848684964,0.359,3927.8,3927.7,0.458]
[1758848686068,0.359,3927.8,3926.8,0.2546]
[1758848686366,0.1533,3928.5,3927.1,4.79179842]
[1758848686563,0.61129,3928.0,3927.2,0.282]
[1758848686762,0.1533,3928.0,3927.6,0.45802]
[1758848687065,0.1533,3928.0,3927.4,0.45804]
[1758848687066,0.1533,3927.5,3927.4,0.45804]
[1758848687357,0.5123,3928.0,3927.9,0.45799]
[1758848687757,0.1533,3928.5,3927.7,4.79179842]
[1758848687758,0.5123,3928.5,3928.4,0.45793]
[1758848689455,0.359,3928.5,3928.4,0.73993]
[1758848689659,0.5377,3929.0,3928.9,0.45787]
[1758848689854,0.3844,3929.0,3928.9,0.45787]
[1758848690362,0.5377,3929.0,3928.9,0.45787]
[1758848690759,0.5123,3929.5,3929.4,0.45782]
[1758848691070,0.359,3930.0,3929.9,0.45776]
[1758848691361,1.93853639,3931.0,3930.5,0.45769]
[1758848691362,0.359,3930.6,3930.5,0.45769]
[1758848693771,0.359,3930.9,3930.3,0.282]
[1758848693963,0.359,3930.9,3930.5,0.45768]
[1758848694165,0.359,3930.9,3930.7,0.45765]
[1758848694662,0.359,3930.9,3930.7,0.73965]
[1758848694862,0.1533,3931.0,3930.7,0.73965]
[1758848695069,0.359,3930.9,3930.7,0.73965]
[1758848695259,0.359,3930.9,3930.7,0.282]
[1758848695654,0.359,3930.9,3929.9,4.79179842]
[1758848695864,0.1533,3931.0,3929.4,4.79179842]
[1758848696063,0.359,3930.9,3929.5,0.282]
[1758848696365,0.1533,3930.5,3930.0,0.45774]
[1758848696858,0.359,3930.4,3930.2,0.45771]
[1758848697061,0.5123,3930.5,3930.4,0.4577]
[1758848697465,0.5123,3930.5,3929.9,4.79179842]
[1758848697669,0.1533,3930.0,3929.9,0.45775]
[1758848697873,0.359,3930.4,3930.3,0.45771]
[1758848698166,0.359,3930.9,3930.7,0.45766]
[1758848698372,0.1533,3931.0,3930.7,0.45766]
[1758848698672,0.5123,3931.0,3930.9,0.45764]
[1758848698876,0.5123,3931.0,3930.3,0.5366]
[1758848699169,0.5123,3931.0,3930.8,0.45764]
[1758848699170,0.359,3930.9,3930.8,0.45764]
[1758848699568,0.1787,3931.5,3931.2,0.4576]
[1758848699768,0.1787,3931.5,3931.0,0.45763]
[1758848699962,0.82228,3931.4,3930.6,0.71227]
[1758848700162,0.1526,3931.0,3930.6,0.45767]
[1758848700460,0.1526,3931.0,3930.2,5.07379842]
[1758848700662,0.3647,3930.8,3929.8,4.79179842]
[1758848700862,0.3647,3930.8,3929.7,0.2462]
[1758848700863,0.8224,3930.4,3929.5,0.282]
[1758848701071,0.3647,3930.3,3929.2,4.79179842]
[1758848701268,0.3647,3930.1,3929.4,0.45781]
[1758848701468,0.1526,3930.0,3929.8,0.45776]
[1758848701669,0.1526,3930.0,3929.7,4.79179842]
[1758848701670,0.3647,3930.4,3930.2,0.70392]
[1758848702074,0.3647,3930.9,3930.2,10.31999842]
[1758848702374,0.3647,3930.9,3930.8,0.45765]
[1758848702575,0.45754,3931.8,3931.1,0.45762]
[1758848702773,0.1526,3932.0,3930.9,0.45764]
[1758848702774,0.3647,3931.4,3930.9,0.45764]
[1758848702966,0.1526,3932.0,3930.9,0.45764]
[1758848703163,0.3647,3931.4,3930.9,0.45764]
[1758848703363,0.3647,3930.9,3930.6,0.282]
[1758848703573,0.1526,3931.0,3930.6,0.282]
[1758848703768,0.3816,3930.9,3930.3,40.8]
[1758848704075,0.1538,3930.5,3930.2,4.79179842]
[1758848704373,0.1538,3930.5,3929.2,4.79179842]
[1758848704374,0.6115,3930.5,3929.2,4.79179842]
[1758848704577,0.6115,3930.5,3929.8,0.45776]
[1758848704880,0.1538,3930.0,3929.8,0.45776]
[1758848705170,0.1538,3930.0,3929.2,4.79179842]
[1758848705171,0.61156,3930.0,3929.2,4.79179842]
[1758848705381,0.3816,3929.4,3929.2,5.07279842]
[1758848705577,0.5354,3929.5,3929.4,0.45782]
[1758848706073,0.3816,3929.5,3929.4,0.45782]
[1758848706278,0.1538,3930.0,3929.3,0.45782]
[1758848706478,0.3816,3929.8,3929.2,4.79179842]
[1758848706684,0.3816,3929.4,3929.3,0.281]
[1758848707271,0.1538,3929.5,3929.3,0.281]
[1758848707478,0.3816,3929.9,3929.7,0.45777]
[1758848707674,0.3816,3930.4,3929.9,0.45775]
[1758848707977,0.91351102,3930.3,3929.7,0.73878]
[1758848708183,0.3816,3930.3,3929.7,0.281]
[1758848708374,0.3816,3930.3,3930.2,0.45772]
[1758848708569,0.9137542,3930.3,3930.2,0.45772]
[1758848708974,0.3816,3930.3,3930.2,0.45772]
[1758848709791,0.1538,3930.5,3930.1,0.281]
[1758848710078,0.1538,3930.5,3930.2,0.281]
[1758848710678,0.3816,3930.4,3930.2,0.73872]
[1758848711476,0.1538,3930.5,3930.2,0.73872]
[1758848711785,0.3816,3930.3,3930.2,0.73872]
[1758848712487,0.3816,3930.4,3930.0,0.45774]
[1758848712687,0.1538,3930.5,3930.1,0.73873]
[1758848712987,0.3816,3930.3,3930.1,0.73873]
[1758848713292,0.5354,3930.5,3930.4,0.4577]
[1758848713483,1.0687274,3930.5,3930.4,0.4577]
[1758848713685,0.5333274,3930.5,3930.4,0.7021]
[1758848714385,0.63677,3931.5,3931.4,0.45758]
[1758848714386,0.5608,3931.5,3931.4,0.45758]
[1758848714584,0.0254,3931.5,3931.4,0.45758]
[1758848714779,0.3816,3931.8,3931.7,0.45755]
[1758848715685,0.3816,3932.3,3932.2,0.45749]
[1758848715885,0.3816,3932.3,3931.6,0.281]
[1758848715886,0.3816,3932.3,3931.9,0.2444]
[1758848716180,1.80723639,3932.9,3931.8,4.79179842]